{"text_format":"3","workbook":"xlsx","n_sheets":2,"sheets":["OSA översikt","OSA sammanfattning"],"not_rendered":{"charts":2,"defined_names":22},"read":"whole","date_system":"1900"}

{"sheet":"OSA översikt","index":0,"n_rows":15,"n_cols":15,"rows_kept":15,"merged":[[0,3,0,4],[0,5,0,7]]}
[{"$nulls":5},"OSA SAMMANFATTNING"]
[null,"BRÖLLOPSDATUM",null,"översikt över bröllopsinbjudningar"]
[null,{"$f":"TODAY()+283","v":"2023-05-15"},null,"GÄSTENS NAMN","SKICKAT?","OSA","FEST","GÄST","RELATION","ADRESS","ORT","LAND","POSTNUMMER","TELEFON","KONTAKT (E-POSTADRESS)"]
[null,"DAGAR KVAR",null,"Namn 1","Ja","Ja",1,"Blivande make/maka 1","Bror","Adress","Ort","Land","POSTNUMMER","Telefon","någon@exempel.se"]
[null,{"$f":"DagarKvar","v":283},null,"Namn 2","Ja","Nej",3,"Blivande make/maka 1","Vän","Adress","Ort","Land","POSTNUMMER","Telefon","någon@exempel.se"]
[null,"KOMMER",null,"Namn 3","Ja","Ja",1,"Övrigt","Vän","Adress","Ort","Land","POSTNUMMER","Telefon","någon@exempel.se"]
[null,{"$f":"TotalaDeltagande","v":12},null,"Namn 4","Ja","Nej",2,"Blivande make/maka 2","Vän","Adress","Ort","Land","POSTNUMMER","Telefon","någon@exempel.se"]
[null,"KOMMER INTE",null,"Namn 5","Ja","Ja",2,"Blivande make/maka 2","Vän","Adress","Ort","Land","POSTNUMMER","Telefon","någon@exempel.se"]
[null,{"$f":"TotalaEjDeltagande","v":6},null,"Namn 6","Ja","Preliminärt",null,"Övrigt","Vän","Adress","Ort","Land","POSTNUMMER","Telefon","någon@exempel.se"]
[null,"VÄNTAR PÅ SVAR",null,"Namn 7","Ja","Ja",2,"Blivande make/maka 2","Vän","Adress","Ort","Land","POSTNUMMER","Telefon","någon@exempel.se"]
[null,{"$f":"SaknadeOSA","v":1},null,"Namn 8","Ja","Nej",1,"Övrigt","Vän","Adress","Ort","Land","POSTNUMMER","Telefon","någon@exempel.se"]
[{"$nulls":3},"Namn 9","Ja","Ja",4,"Blivande make/maka 1","Vän","Adress","Ort","Land","POSTNUMMER","Telefon","någon@exempel.se"]
[{"$nulls":3},"Namn 10","Ja","Ja",2,"Blivande make/maka 1","Vän","Adress","Ort","Land","POSTNUMMER","Telefon","någon@exempel.se"]
[{"$nulls":3},"Namn 11","Ja",null,null,"Blivande make/maka 2","Bror","Adress","Ort","Land","POSTNUMMER","Telefon","någon@exempel.se"]
[{"$nulls":3},"SAMMANLAGT:",{"$f":"COUNTIF('OSA översikt'!$E$4:$E$14,\"Ja\")","v":11},{"$f":"COUNTA('OSA översikt'!$F$4:$F$14)","v":10},{"$f":"SUBTOTAL(109,tblInbjudningar[FEST])","v":18}]

{"sheet":"OSA sammanfattning","index":1,"n_rows":11,"n_cols":15,"rows_kept":11,"merged":[[0,3,0,4],[0,5,0,8],[2,3,6,3],[2,4,6,4],[7,3,11,3],[7,4,11,4]]}
[{"$nulls":3},"OSA ÖVERSIKT"]
[null,"BRÖLLOPSDATUM",null,"osa sammanfattning",{"$nulls":10},"anteckningar"]
[null,{"$f":"Bröllopsdatum","v":"2023-05-15"},null,"JA","Grupperat liggande stapeldiagram som visar gästtyper för dem som tackat ja på OSA finns i den här cellen."]
[null,"DAGAR KVAR",{"$nulls":3},"ÖVRIGT",{"$f":"IFERROR(SUMIFS(tblInbjudningar[FEST],tblInbjudningar[GÄST],\"=Övrigt\",tblInbjudningar[OSA],\"Ja\"),0)","v":1},{"$f":"tblInbjudningar[[#Totals],[SKICKAT?]]","v":11}]
[null,{"$f":"DagarKvar","v":283},{"$nulls":3},"BLIVANDE MAKE/MAKA 2",{"$f":"IFERROR(SUMIFS(tblInbjudningar[FEST],tblInbjudningar[GÄST],\"=Blivande make/maka 2\",tblInbjudningar[OSA],\"Ja\"),0)","v":4},{"$f":"tblInbjudningar[[#Totals],[SKICKAT?]]","v":11}]
[null,"KOMMER",{"$nulls":3},"BLIVANDE MAKE/MAKA 1",{"$f":"IFERROR(SUMIFS(tblInbjudningar[FEST],tblInbjudningar[GÄST],\"=Blivande make/maka 1\",tblInbjudningar[OSA],\"Ja\"),0)","v":7},{"$f":"tblInbjudningar[[#Totals],[SKICKAT?]]","v":11}]
[null,{"$f":"TotalaDeltagande","v":12}]
[null,"KOMMER INTE",null,"NEJ","Grupperat liggande stapeldiagram som visar gästtyper för dem som tackat nej på OSA finns i den här cellen."]
[null,{"$f":"TotalaEjDeltagande","v":6},{"$nulls":3},"ÖVRIGT",{"$f":"IFERROR(SUMIFS(tblInbjudningar[FEST],tblInbjudningar[GÄST],\"=Övrigt\",tblInbjudningar[OSA],\"Nej\"),0)","v":1},{"$f":"tblInbjudningar[[#Totals],[SKICKAT?]]","v":11}]
[null,"VÄNTAR PÅ SVAR",{"$nulls":3},"BLIVANDE MAKE/MAKA 2",{"$f":"IFERROR(SUMIFS(tblInbjudningar[FEST],tblInbjudningar[GÄST],\"=Blivande make/maka 2\",tblInbjudningar[OSA],\"Nej\"),0)","v":2},{"$f":"tblInbjudningar[[#Totals],[SKICKAT?]]","v":11}]
[null,{"$f":"SaknadeOSA","v":1},{"$nulls":3},"BLIVANDE MAKE/MAKA 1",{"$f":"IFERROR(SUMIFS(tblInbjudningar[FEST],tblInbjudningar[GÄST],\"=Blivande make/maka 1\",tblInbjudningar[OSA],\"Nej\"),0)","v":3},{"$f":"tblInbjudningar[[#Totals],[SKICKAT?]]","v":11}]